fUST/lending_fUST_20251003
["ID","MTS","AMOUNT","RATE_DAILY","PERIOD"]
[388899873,1759484167760,-500.0,0.00018032,2]
[388899874,1759484167875,-3474.64,0.00018032,2]
[388899875,1759484167904,-876.73,0.00018032,2]
[388899876,1759484167932,-500.0,0.00018032,2]
[388899877,1759484168226,-500.0,0.00018032,2]
[388899878,1759484168236,-30.59,0.00018032,2]
[388899879,1759484168254,-469.41,0.00018032,2]
[388899880,1759484168264,-30.59,0.00018032,2]
[388899881,1759484168280,-297.27,0.00018032,2]
[388899882,1759484171596,500.0,0.00027397,120]
[388899884,1759484265599,598.43536835,0.00017931,2]
[388899888,1759484297868,-669.76,0.00018024,3]
[388899889,1759484297898,-300.0,0.00018028,2]
[388899890,1759484297926,-487.48246391,0.00018029,2]
[388899891,1759484297955,-500.0,0.00018029,2]
[388899892,1759484297983,-738.63,0.00018029,2]
[388899893,1759484298011,-1240.32,0.00018029,2]
[388899894,1759484298040,-500.0,0.00018029,2]
[388899895,1759484298069,-508.03507218,0.00018029,2]
[388899896,1759484298189,-111.55492782,0.00018029,2]
[388899897,1759484301787,-1200.0,0.0001803,2]
[388899898,1759484301820,-7600.01,0.00018031,2]
[388899899,1759484308682,1000.0,0.00028767,120]
[388899900,1759484323006,254.77631825,0.00017932,2]
[388899901,1759484324867,1000.0,0.00028767,120]
[388899902,1759484338416,1000.0,0.00028767,120]
[388899903,1759484353010,503.0,0.00028767,120]
[388899905,1759484430956,159.0,0.00026251,120]
[388899906,1759484432196,159.0,0.00027564,120]
[388899908,1759484446107,-639.37,0.00018021,3]
[388899909,1759484446135,-1042.36,0.00018021,3]
[388899910,1759484446162,-346.43166832,0.00018021,2]
[388899911,1759484446190,-300.0,0.00018028,2]
[388899912,1759484446217,-300.0,0.00018028,2]
[388899913,1759484446245,-300.0,0.00018028,2]
[388899914,1759484446271,-275.0,0.00018028,2]
[388899915,1759484446303,-1200.0,0.00018028,2]
[388899916,1759484446333,-500.0,0.00018029,2]
[388899917,1759484446485,-193.68666336,0.00018029,2]
[388899918,1759484450071,-521.18,0.00018021,3]
[388899919,1759484450099,-306.31333664,0.00018029,2]
[388899920,1759484450127,-2517.12,0.00018029,2]
[388899921,1759484450153,-500.0,0.00018029,2]
[388899922,1759484450183,-500.0,0.00018029,2]
[388899923,1759484450275,-1310.78332672,0.00018029,2]
[388899924,1759484454088,-2237.37667328,0.00018029,2]
[388899925,1759484454117,-993.83,0.00018029,2]
[388899926,1759484454352,-734.2,0.00018029,2]
[388899927,1759484454385,-500.0,0.00018029,2]
[388899928,1759484454416,-500.0,0.00018029,2]
[388899929,1759484454534,-69.19665344,0.00018029,2]
[388899930,1759484477069,2548.68718634,0.00018011,2]
[388899932,1759484508612,204.87190892,0.00017924,2]
[388899933,1759484517610,6831.69605798,0.00017933,2]
[388899934,1759484524155,2606.3125679,0.0001703,2]
[388899936,1759484550763,687.69001189,0.00017929,2]
[388899937,1759484568817,-408.42,0.00018021,3]
[388899938,1759484568844,-204.21,0.00018021,3]
[388899939,1759484568871,-500.0,0.00018021,2]
[388899940,1759484568897,-612.64,0.00018021,3]
[388899941,1759484568924,-300.0,0.00018028,2]
[388899942,1759484568952,-1200.0,0.00018028,2]
[388899943,1759484568979,-500.0,0.00018028,2]
[388899944,1759484575681,500.0,0.00018028,2]
[388899945,1759484582006,760.88,0.00018021,3]
[388899946,1759484582160,457.35764932,0.00018028,2]
[388899947,1759484582424,300.0,0.00018027,2]
[388899949,1759484591367,531.23235068,0.00018028,2]
[388899950,1759484591388,5351.42567832,0.00018028,2]
[388899951,1759484615676,-500.0,0.00018027,2]
[388899952,1759484616745,500.0,0.00018028,2]
[388899953,1759484622396,500.0,0.00018027,2]
[388899954,1759484639131,742.58,0.00018027,2]
[388899955,1759484642865,300.0,0.00018027,2]
[388899956,1759484650815,1248.86,0.00018027,2]
[388899957,1759484664441,428.47193531,0.00017931,2]
[388899958,1759484664957,512.92851365,0.00018028,2]
[388899959,1759484666426,428.47193531,0.00018,2]
[388899960,1759484669872,500.0,0.00018027,2]
[388899961,1759484671683,150.0,0.00017966,7]
[388899962,1759484672080,500.0,0.00018027,2]
[388899963,1759484672108,500.0,0.00018027,2]
[388899964,1759484672149,500.0,0.00018027,2]
[388899965,1759484672177,500.0,0.00018027,2]
[388899966,1759484672205,500.0,0.00018027,2]
[388899967,1759484672234,500.0,0.00018027,2]
[388899968,1759484672262,500.0,0.00018027,2]
[388899969,1759484672291,188.69761573,0.00018027,2]
[388899970,1759484672313,311.30238427,0.00018027,2]
[388899971,1759484672343,500.0,0.00018027,2]
[388899972,1759484672374,500.0,0.00018027,2]
[388899973,1759484672402,500.0,0.00018027,2]
[388899974,1759484672430,500.0,0.00018027,2]
[388899975,1759484672456,500.0,0.00018027,2]
[388899976,1759484672482,236.52750848,0.00018027,2]
[388899977,1759484672513,500.0,0.00018027,2]
[388899978,1759484672544,500.0,0.00018027,2]
[388899979,1759484672572,500.0,0.00018027,2]
[388899980,1759484672599,500.0,0.00018027,2]
[388899981,1759484672626,500.0,0.00018027,2]
[388899982,1759484672654,500.0,0.00018027,2]
[388899983,1759484672684,202.21969908,0.00018027,2]
[388899984,1759484672711,500.0,0.00018027,2]
[388899985,1759484672744,500.0,0.00018027,2]
[388899986,1759484672771,499.09514197,0.00018027,2]
[388899987,1759484672798,500.0,0.00018027,2]
[388899988,1759484672825,500.0,0.00018027,2]
[388899989,1759484672851,500.0,0.00018027,2]
[388899990,1759484672880,500.0,0.00018027,2]
[388899991,1759484672906,250.8652662,0.00018027,2]
[388899992,1759484676130,170.9751376,0.00017927,2]
[388899993,1759484678242,-249.1347338,0.00018027,2]
[388899994,1759484678275,-500.0,0.00018027,2]
[388899995,1759484678305,-500.0,0.00018027,2]
[388899996,1759484678336,-500.0,0.00018027,2]
[388899997,1759484678369,-337.2708192,0.00018027,2]
[388899998,1759484678399,-500.0,0.00018027,2]
[388899999,1759484678428,-500.0,0.00018027,2]
[388900000,1759484678459,-500.0,0.00018027,2]
[388900001,1759484678488,-500.0,0.00018027,2]
[388900002,1759484678518,-500.0,0.00018027,2]
[388900003,1759484678547,-327.198894,0.00018027,2]
[388900004,1759484678659,-172.801106,0.00018027,2]
[388900005,1759484678688,-500.0,0.00018027,2]
[388900006,1759484678717,-500.0,0.00018027,2]
[388900007,1759484678745,-500.0,0.00018027,2]
[388900008,1759484678774,-500.0,0.00018027,2]
[388900009,1759484678805,-500.0,0.00018027,2]
[388900010,1759484678834,-522.99805909,0.00018027,2]
[388900011,1759484678864,-500.0,0.00018027,2]
[388900012,1759484678893,-500.0,0.00018027,2]
[388900013,1759484678922,-500.0,0.00018027,2]
[388900014,1759484678952,-108.41166982,0.00018027,2]
[388900015,1759484688056,5000.0,0.00018011,2]
[388900016,1759484696494,827.13884655,0.00018011,2]
[388900017,1759484711663,5000.0,0.00018011,2]
[388900019,1759484742842,-234.05,0.00018021,3]
[388900020,1759484742870,-300.0,0.00018026,2]
[388900021,1759484742897,-300.0,0.00018026,2]
[388900022,1759484742924,-1200.0,0.00018026,2]
[388900023,1759484742953,-500.0,0.00018027,2]
[388900024,1759484742980,-711.64,0.00018027,2]
[388900025,1759484743008,-1196.82,0.00018027,2]
[388900026,1759484743036,-500.0,0.00018027,2]
[388900027,1759484746735,-500.0,0.00018027,2]
[388900028,1759484746762,-500.0,0.00018027,2]
[388900029,1759484746787,-500.0,0.00018027,2]
[388900030,1759484746813,-500.0,0.00018027,2]
[388900031,1759484746841,-1045.9296891,0.00018027,2]
[388900032,1759484750784,-3908.1506218,0.00018027,2]
[388900033,1759484777841,4554.46403864,0.00017932,2]
[388900035,1759484785103,500.0,0.00027397,120]
[388900040,1759484801688,-300.0,0.00018026,2]
[388900041,1759484801717,-500.0,0.00018026,2]
[388900042,1759484801745,-3554.06,0.00018027,2]
[388900043,1759484801772,-248.86,0.00018027,2]
[388900044,1759484805281,-794.17,0.00018027,2]
[388900045,1759484805310,-620.57,0.00018027,2]
[388900046,1759484805336,-991.31,0.00018027,2]
[388900047,1759484805363,-500.0,0.00018027,2]
[388900048,1759484805392,-500.0,0.00018027,2]
[388900049,1759484805418,-500.0,0.00018027,2]
[388900050,1759484805446,-500.0,0.00018027,2]
[388900051,1759484805475,-500.0,0.00018027,2]
[388900052,1759484809352,-642.59,0.00018027,2]
[388900053,1759484809379,-500.0,0.00018027,2]
[388900054,1759484809411,-2513.25,0.00018027,2]
[388900055,1759484809438,-500.0,0.00018027,2]
[388900056,1759484809468,-500.0,0.00018027,2]
[388900057,1759484840749,647.83489267,0.00017928,2]
[388900058,1759484843765,-300.0,0.00018026,2]
[388900059,1759484843794,-1200.0,0.00018026,2]
[388900060,1759484843825,-3405.97,0.00018027,2]
[388900061,1759484845647,-500.0,0.00018027,2]
[388900062,1759484845675,-500.0,0.00018027,2]
[388900063,1759484845705,-1479.38,0.00018027,2]
[388900064,1759484845732,-500.0,0.00018027,2]
[388900065,1759484845759,-666.83,0.00018027,2]
[388900066,1759484845788,-950.01,0.00018027,2]
[388900067,1759484845815,-307.57,0.00018027,2]
[388900068,1759484847694,-192.43,0.00018027,2]
[388900069,1759484847722,-500.0,0.00018027,2]
[388900070,1759484847749,-500.0,0.00018027,2]
[388900071,1759484847776,-500.0,0.00018027,2]
[388900072,1759484847804,-1952.52,0.00018027,2]
[388900073,1759484847833,-391.58833018,0.00018027,2]
[388900074,1759484847860,-500.0,0.00018027,2]
[388900075,1759484847887,-426.93333964,0.00018027,2]
[388900076,1759484849730,-500.0,0.00018027,2]
[388900077,1759484849760,-73.06666036,0.00018027,2]
[388900078,1759484849790,-500.0,0.00018027,2]
[388900079,1759484849817,-500.0,0.00018027,2]
[388900080,1759484849845,-500.0,0.00018027,2]
[388900081,1759484849873,-500.0,0.00018027,2]
[388900082,1759484849902,-500.0,0.00018027,2]
[388900083,1759484849932,-500.0,0.00018027,2]
[388900084,1759484849961,-500.0,0.00018027,2]
[388900085,1759484849991,-500.0,0.00018027,2]
[388900086,1759484850019,-353.87667928,0.00018027,2]
[388900088,1759484883092,-300.0,0.00018026,2]
[388900089,1759484883121,-500.0,0.00018027,2]
[388900090,1759484883148,-500.0,0.00018027,2]
[388900091,1759484883175,-1417.74,0.00018027,2]
[388900092,1759484883203,-500.0,0.00018027,2]
[388900093,1759484883231,-774.97,0.00018027,2]
[388900094,1759484883259,-500.0,0.00018027,2]
[388900095,1759484883500,-375.54,0.00018027,2]
[388900096,1759484887039,-500.0,0.00018026,2]
[388900097,1759484887068,-263.51,0.00018027,2]
[388900098,1759484887097,-500.0,0.00018027,2]
[388900099,1759484887126,-919.7,0.00018027,2]
[388900100,1759484887155,-1365.58,0.00018027,2]
[388900101,1759484887184,-146.12332072,0.00018027,2]
[388900102,1759484887212,-500.0,0.00018027,2]
[388900103,1759484887242,-500.0,0.00018027,2]
[388900104,1759484887271,-110.18335856,0.00018027,2]
[388900105,1759484891149,-500.0,0.00018027,2]
[388900106,1759484891179,-1002.72,0.00018027,2]
[388900107,1759484891210,-389.81664144,0.00018027,2]
[388900108,1759484891241,-500.0,0.00018027,2]
[388900109,1759484891272,-500.0,0.00018027,2]
[388900110,1759484891303,-500.0,0.00018027,2]
[388900111,1759484891330,-500.0,0.00018027,2]
[388900112,1759484891358,-593.4604943,0.00018027,2]
[388900113,1759484891383,-500.0,0.00018027,2]
[388900114,1759484892827,177.54427484,0.00017957,2]
[388900115,1759484925488,-500.0,0.00018026,2]
[388900116,1759484925518,-503.44,0.00018027,2]
[388900117,1759484925545,-500.0,0.00018027,2]
[388900118,1759484925572,-500.0,0.00018027,2]
[388900119,1759484925600,-1952.07,0.00018027,2]
[388900120,1759484925627,-500.0,0.00018027,2]
[388900121,1759484925654,-500.0,0.00018027,2]
[388900122,1759484929365,-500.0,0.00018027,2]
[388900123,1759484929394,-500.0,0.00018027,2]
[388900124,1759484929423,-500.0,0.00018027,2]
[388900125,1759484929453,-742.68,0.00018027,2]
[388900126,1759484929481,-500.0,0.00018028,2]
[388900127,1759484929506,-500.0,0.00018028,2]
[388900128,1759484929532,-500.0,0.00018028,2]
[388900129,1759484929561,-500.0,0.00018028,2]
[388900130,1759484929589,-500.0,0.00018028,2]
[388900131,1759484929617,-14.65,0.00018028,2]
[388900132,1759484930778,3071.08350017,0.00018011,2]
[388900134,1759484933441,-500.0,0.00018027,2]
[388900135,1759484933471,-881.38,0.00018027,2]
[388900136,1759484933505,-485.35,0.00018028,2]
[388900137,1759484933711,-500.0,0.00018028,2]
[388900138,1759484933741,-500.0,0.00018028,2]
[388900139,1759484933770,-166.0,0.00018028,2]
[388900140,1759484933797,-612.41079257,0.00018028,2]
[388900141,1759484933825,-166.56612688,0.00018028,2]
[388900142,1759484933854,-500.0,0.00018028,2]
[388900143,1759484933885,-500.0,0.00018028,2]
[388900144,1759484938736,1063.89123556,0.00018011,2]
[388900145,1759484954034,5000.0,0.00018011,2]
[388900146,1759484984052,-620.39,0.00018026,2]
[388900147,1759484984084,-2176.06,0.00018027,2]
[388900148,1759484984117,-300.0,0.00018027,2]
[388900149,1759484984148,-500.0,0.00018027,2]
[388900150,1759484984180,-554.73,0.00018027,2]
[388900151,1759484984211,-500.0,0.00018027,2]
[388900152,1759484984242,-19.65,0.00018027,2]
[388900153,1759484985969,-658.35,0.00018027,2]
[388900154,1759484986001,-500.0,0.00018027,2]
[388900155,1759484986034,-500.0,0.00018028,2]
[388900156,1759484986072,-259.69675769,0.00018028,2]
[388900157,1759484986107,-500.0,0.00018028,2]
[388900158,1759484986137,-581.10895455,0.00018028,2]
[388900159,1759484986168,-500.0,0.00018028,2]
[388900160,1759484986198,-500.0,0.00018028,2]
[388900161,1759484986451,-500.0,0.00018028,2]
[388900162,1759484986587,-494.87996428,0.00018028,2]
[388900163,1759484987979,-11.93864696,0.00018028,2]
[388900164,1759484988010,-500.0,0.00018028,2]
[388900165,1759484988043,-500.0,0.00018028,2]
[388900166,1759484988076,-500.0,0.00018028,2]
[388900167,1759484988106,-500.0,0.00018028,2]
[388900168,1759484988135,-500.0,0.00018028,2]
[388900169,1759484988164,-198.98017356,0.00018028,2]
[388900170,1759484988192,-500.0,0.00018028,2]
[388900171,1759484988221,-500.0,0.00018028,2]
[388900172,1759484988249,-500.0,0.00018028,2]
[388900173,1759484988276,-500.0,0.00018028,2]
[388900174,1759484988305,-78.17235896,0.00018028,2]
[388900175,1759484989971,-421.82764104,0.00018028,2]
[388900176,1759484990003,-500.0,0.00018028,2]
[388900177,1759484990032,-500.0,0.00018028,2]
[388900178,1759484990062,-500.0,0.00018028,2]
[388900179,1759484990091,-715.26,0.00018028,2]
[388900180,1759484990120,-500.0,0.00018028,2]
[388900181,1759484990149,-500.0,0.00018028,2]
[388900182,1759484990519,500.0,0.00018027,2]
[388900183,1759484990667,500.0,0.00018028,2]
[388900184,1759485003853,460.32218509,0.00017931,2]
[388900185,1759485024497,-166.0,0.00018021,2]
[388900186,1759485024526,-300.0,0.00018026,2]
[388900187,1759485024556,-1200.0,0.00018026,2]
[388900188,1759485024583,-500.0,0.00018026,2]
[388900189,1759485024613,-2505.33,0.00018026,2]
[388900190,1759485026254,-2085.39,0.00018027,2]
[388900191,1759485026282,-500.0,0.00018027,2]
[388900192,1759485026313,-1395.72,0.00018027,2]
[388900193,1759485026344,-955.04,0.00018027,2]
[388900194,1759485028266,-500.0,0.00018026,2]
[388900195,1759485028294,-127.71,0.00018027,2]
[388900196,1759485028321,-500.0,0.00018027,2]
[388900197,1759485028347,-531.61,0.00018027,2]
[388900198,1759485028375,-1456.73,0.00018027,2]
[388900199,1759485028402,-1612.21,0.00018027,2]
[388900200,1759485030251,-2512.17,0.00018027,2]
[388900201,1759485030281,-2419.48,0.00018027,2]
[388900228,1759485031891,-429.06873695,0.00018028,2]
[388900229,1759485031903,-70.93126305,0.00018028,2]
[388900230,1759485031912,-556.84,0.00018029,2]
[388900231,1759485031920,-8185.87,0.00018029,2]
[388900232,1759485031929,-3535.93,0.00018029,2]
[388900233,1759485031938,-930.41,0.00018029,2]
[388900234,1759485031947,-939.07,0.00018029,2]
[388900235,1759485031955,-500.0,0.00018029,2]
[388900236,1759485031964,-650.1540198,0.00018029,2]
[388900237,1759485031976,-1612.0559802,0.00018029,2]
[388900238,1759485031985,-863.53,0.00018029,2]
[388900239,1759485031994,-563.37,0.00018029,2]
[388900240,1759485032003,-1873.16,0.00018029,2]
[388900241,1759485032011,-1566.33,0.00018029,2]
[388900242,1759485032021,-319.2343431,0.00018029,2]
[388900244,1759485032030,-3329.87,0.00018029,2]
[388900246,1759485032040,-661.76,0.00018029,2]
[388900248,1759485032050,-204.88079342,0.00018029,2]
[388900250,1759485032059,-500.0,0.0001803,2]
[388900252,1759485032068,-522.48,0.0001803,2]
[388900254,1759485032076,-500.0,0.0001803,2]
[388900256,1759485032085,-500.0,0.0001803,2]
[388900258,1759485032094,-500.0,0.0001803,2]
[388900260,1759485032103,-447.71448699,0.0001803,2]
[388900261,1759485032112,-1868.77,0.0001803,2]
[388900263,1759485032121,-503.12,0.0001803,2]
[388900265,1759485032131,-1318.3,0.0001803,2]
[388900266,1759485032140,-500.0,0.0001803,2]
[388900267,1759485032149,-1611.89,0.0001803,2]
[388900268,1759485032158,-500.0,0.0001803,2]
[388900269,1759485032166,-500.0,0.0001803,2]
[388900270,1759485032174,-500.0,0.0001803,2]
[388900271,1759485032183,-906.05,0.0001803,2]
[388900272,1759485032192,-875.96,0.0001803,2]
[388900273,1759485032201,-500.0,0.0001803,2]
[388900274,1759485032210,-324.70843192,0.0001803,2]
[388900275,1759485032220,-500.0,0.0001803,2]
[388900276,1759485032230,-500.0,0.0001803,2]
[388900277,1759485032239,-455.28681015,0.0001803,2]
[388900278,1759485032248,-500.0,0.0001803,2]
[388900279,1759485032257,-500.0,0.0001803,2]
[388900280,1759485032266,-586.51,0.0001803,2]
[388900281,1759485032275,-512.13,0.0001803,2]
[388900282,1759485032285,-603.99,0.0001803,2]
[388900283,1759485032294,-436.32852189,0.0001803,2]
[388900284,1759485032306,-63.67147811,0.0001803,2]
[388900285,1759485032316,-500.0,0.0001803,2]
[388900286,1759485032325,-500.0,0.0001803,2]
[388900287,1759485032334,-603.77,0.0001803,2]
[388900288,1759485032343,-591.42,0.0001803,2]
[388900289,1759485032352,-1318.02,0.0001803,2]
[388900290,1759485032361,-500.0,0.0001803,2]
[388900291,1759485032369,-612.25,0.0001803,2]
[388900292,1759485032378,-500.0,0.0001803,2]
[388900293,1759485032387,-500.0,0.0001803,2]
[388900294,1759485032396,-628.52,0.0001803,2]
[388900295,1759485032404,-771.67,0.0001803,2]
[388900296,1759485032413,-1014.13,0.0001803,2]
[388900297,1759485032422,-1172.56,0.0001803,2]
[388900298,1759485032431,-1122.84,0.0001803,2]
[388900299,1759485032440,-688.25,0.0001803,2]
[388900300,1759485032449,-731.61,0.0001803,2]
[388900301,1759485032458,-500.0,0.0001803,2]
[388900302,1759485032467,-1116.62,0.0001803,2]
[388900303,1759485032475,-647.35,0.0001803,2]
[388900304,1759485032489,-757.86,0.0001803,2]
[388900305,1759485032498,-500.0,0.0001803,2]
[388900306,1759485032507,-500.0,0.0001803,2]
[388900307,1759485032516,-500.0,0.0001803,2]
[388900308,1759485032526,-1368.1,0.0001803,2]
[388900309,1759485032536,-500.0,0.0001803,2]
[388900310,1759485032545,-1544.84,0.0001803,2]
[388900311,1759485032555,-500.0,0.0001803,2]
[388900312,1759485032567,-1304.72,0.0001803,2]
[388900313,1759485032576,-563.51,0.0001803,2]
[388900314,1759485032585,-3501.48,0.0001803,2]
[388900315,1759485032593,-500.0,0.0001803,2]
[388900316,1759485032604,-2512.89,0.0001803,2]
[388900317,1759485032614,-500.0,0.0001803,2]
[388900318,1759485032624,-2043.83,0.0001803,2]
[388900319,1759485032633,-500.0,0.0001803,2]
[388900320,1759485032643,-500.0,0.0001803,2]
[388900321,1759485032652,-500.0,0.0001803,2]
[388900322,1759485032661,-65265.71018626,0.0001803,2]
[388900323,1759485032671,-500.0,0.00018031,2]
[388900324,1759485032681,-500.0,0.00018031,2]
[388900325,1759485032691,-500.0,0.00018031,2]
[388900326,1759485032700,-876.4128112,0.00018031,2]
[388900327,1759485032710,-500.0,0.00018031,2]
[388900328,1759485032719,-500.0,0.00018031,2]
[388900329,1759485032728,-418.33311752,0.00018031,2]
[388900330,1759485032740,-81.66688248,0.00018031,2]
[388900331,1759485032749,-177.93731128,0.00018031,2]
[388900370,1759485037745,-500.0,0.00018027,2]
[388900372,1759485037755,-649.75,0.00018027,2]
[388900374,1759485037764,-500.0,0.00018027,2]
[388900376,1759485037773,-305.594857,0.00018028,2]
[388900378,1759485037783,-500.0,0.00018028,2]
[388900380,1759485037792,-804.1,0.00018029,2]
[388900382,1759485037801,-506.61,0.0001803,2]
[388900384,1759485037811,-322.06268872,0.00018031,2]
[388900386,1759485037820,-500.0,0.00018031,2]
[388900388,1759485037830,-500.0,0.00018031,2]
[388900390,1759485037839,-500.0,0.00018031,2]
[388900392,1759485037849,-500.0,0.00018031,2]
[388900394,1759485037858,-500.0,0.00018031,2]
[388900396,1759485037867,-500.0,0.00018031,2]
[388900398,1759485037875,-500.0,0.00018031,2]
[388900400,1759485037884,-536.45,0.00018031,2]
[388900402,1759485037894,-124.28549547,0.00018031,2]
[388900422,1759485038130,-375.71450453,0.00018031,2]
[388900424,1759485038140,-79.98966643,0.00018031,2]
[388900602,1759485039843,-891.64,0.0001803,2]
[388900604,1759485039854,-420.01033357,0.00018031,2]
[388900606,1759485039864,-296.47506512,0.00018031,2]
[388900611,1759485039896,-203.52493488,0.00018031,2]
[388900613,1759485039906,-726.97,0.00018031,2]
[388900615,1759485039916,-842.86,0.00018031,2]
[388900616,1759485039926,-500.0,0.00018031,2]
[388900618,1759485039935,-500.0,0.00018031,2]
[388900619,1759485039946,-1666.92,0.00018031,2]
[388900621,1759485039955,-500.0,0.00018031,2]
[388900623,1759485039965,-500.0,0.00018031,2]
[388900625,1759485039975,-500.0,0.00018031,2]
[388900626,1759485039984,-838.36,0.00018031,2]
[388900628,1759485039994,-500.0,0.00018031,2]
[388900630,1759485040003,-500.0,0.00018031,2]
[388900631,1759485040013,-533.19,0.00018031,2]
[388900633,1759485040023,-500.0,0.00018031,2]
[388900635,1759485040032,-613.68,0.00018031,2]
[388900636,1759485040042,-500.0,0.00018031,2]
[388900638,1759485040052,-500.0,0.00018031,2]
[388900640,1759485040061,-500.0,0.00018031,2]
[388900642,1759485040071,-737.49,0.00018031,2]
[388900643,1759485040081,-500.0,0.00018031,2]
[388900645,1759485040090,-500.0,0.00018031,2]
[388900647,1759485040101,-1041.26,0.00018031,2]
[388900648,1759485040111,-561.07350449,0.00018031,2]
[388900650,1759485040120,-732.03,0.00018031,2]
[388900652,1759485040130,-617.94,0.00018031,2]
[388900653,1759485040139,-798.51,0.00018031,2]
[388900655,1759485040149,-751.65,0.00018031,2]
[388900657,1759485040159,-500.0,0.00018031,2]
[388900658,1759485040168,-500.0,0.00018031,2]
[388900660,1759485040178,-500.0,0.00018031,2]
[388900662,1759485040188,-1895.75,0.00018031,2]
[388900663,1759485040197,-1153.08,0.00018031,2]
[388900665,1759485040207,-500.0,0.00018031,2]
[388900667,1759485040217,-959.72,0.00018031,2]
[388900669,1759485040227,-595.1,0.00018031,2]
[388900670,1759485040237,-292.89156064,0.00018031,2]
[388900673,1759485040253,-647.88843936,0.00018031,2]
[388900674,1759485040267,-500.0,0.00018031,2]
[388900676,1759485040278,-500.0,0.00018031,2]
[388900678,1759485040287,-548.65,0.00018031,2]
[388900680,1759485040297,-500.0,0.00018031,2]
[388900682,1759485040307,-642.18245009,0.00018031,2]
[388900684,1759485040316,-677.11,0.00018031,2]
[388900685,1759485040326,-500.0,0.00018031,2]
[388900687,1759485040336,-355.37483475,0.00018031,2]
[388900689,1759485040345,-1456.28243392,0.00018031,2]
[388900691,1759485040357,-305.76756608,0.00018031,2]
[388900693,1759485040367,-477.14446994,0.00018031,2]
[388900888,1759485042968,-740.06,0.00018026,2]
[388900889,1759485042979,-2939.77,0.00018029,2]
[388900891,1759485042988,-22.85553006,0.00018031,2]
[388900893,1759485042999,-846.45,0.00018031,2]
[388900895,1759485043009,-500.0,0.00018031,2]
[388900897,1759485043018,-613.25706748,0.00018031,2]
[388900899,1759485043027,-500.0,0.00018031,2]
[388900900,1759485043037,-500.0,0.00018031,2]
[388900902,1759485043047,-500.0,0.00018031,2]
[388900904,1759485043057,-500.0,0.00018031,2]
[388900906,1759485043067,-567.81,0.00018031,2]
[388900908,1759485043077,-500.0,0.00018031,2]
[388900909,1759485043087,-731.05,0.00018031,2]
[388900911,1759485043097,-500.0,0.00018031,2]
[388900913,1759485043107,-500.0,0.00018031,2]
[388900915,1759485043115,-500.0,0.00018031,2]
[388900916,1759485043124,-1083.26,0.00018031,2]
[388900918,1759485043134,-500.0,0.00018031,2]
[388900919,1759485043143,-900.75,0.00018031,2]
[388900921,1759485043154,-500.0,0.00018031,2]
[388900922,1759485043163,-500.0,0.00018031,2]
[388900924,1759485043172,-768.22,0.00018031,2]
[388900926,1759485043182,-846.46,0.00018031,2]
[388900928,1759485043192,-439.54951182,0.00018031,2]
[388900929,1759485043203,-801.94659396,0.00018031,2]